[Event "*** Titled Tuesday Blitz"]
[Site "Chess.com"]
[Date "2018.12.04"]
[Round "1"]
[White "Chessmatus"]
[Black "johnathan113"]
[Result "1-0"]
[WhiteElo "2175"]
[BlackElo "2530"]
[TimeControl "180+2"]
[EndTime "13:07:34 PST"]
[Termination "Chessmatus won on time"]

1. d4 {[%clk 0:03:01.9]} 1... Nf6 {[%clk 0:03:00.7]} 2. c4 {[%clk 0:03:02.9]}
2... g6 {[%clk 0:03:02.3]} 3. Nc3 {[%clk 0:03:03.2]} 3... Bg7 {[%clk 0:03:04]}
4. e4 {[%clk 0:03:04.2]} 4... d6 {[%clk 0:03:05.8]} 5. Be2 {[%clk 0:03:05.3]}
5... O-O {[%clk 0:03:07.4]} 6. Be3 {[%clk 0:03:06.4]} 6... Na6 {[%clk
0:03:09.1]} 7. Nf3 {[%clk 0:03:06.4]} 7... c6 {[%clk 0:03:08.3]} 8. O-O {[%clk
0:03:05.3]} 8... e5 {[%clk 0:03:09.6]} 9. d5 {[%clk 0:03:05.7]} 9... Ng4 {[%clk
0:03:10.9]} 10. Bg5 {[%clk 0:03:06.4]} 10... f6 {[%clk 0:03:12.7]} 11. Bh4
{[%clk 0:03:07.6]} 11... c5 {[%clk 0:03:14.3]} 12. Nd2 {[%clk 0:03:04.5]} 12...
h5 {[%clk 0:03:11.1]} 13. Rb1 {[%clk 0:02:58.8]} 13... Nh6 {[%clk 0:03:08.9]}
14. f3 {[%clk 0:02:57]} 14... Nf7 {[%clk 0:03:09.5]} 15. Bd3 {[%clk 0:02:57.5]}
15... Bh6 {[%clk 0:03:09.5]} 16. Qe2 {[%clk 0:02:58.2]} 16... Bg5 {[%clk
0:03:09.9]} 17. Bxg5 {[%clk 0:02:58.3]} 17... Nxg5 {[%clk 0:03:11.8]} 18. a3
{[%clk 0:02:59.3]} 18... Qe7 {[%clk 0:03:09.6]} 19. b4 {[%clk 0:03:00.1]} 19...
h4 {[%clk 0:03:09.4]} 20. Kh1 {[%clk 0:02:57.6]} 20... h3 {[%clk 0:03:08.1]} 21.
g3 {[%clk 0:02:57.3]} 21... f5 {[%clk 0:03:06]} 22. f4 {[%clk 0:02:54]} 22...
exf4 {[%clk 0:02:28.5]} 23. gxf4 {[%clk 0:02:31.8]} 23... Nh7 {[%clk 0:02:26.7]}
24. e5 {[%clk 0:02:31.3]} 24... Kh8 {[%clk 0:02:12.7]} 25. Nf3 {[%clk 0:02:31]}
25... b6 {[%clk 0:02:07.9]} 26. Rfe1 {[%clk 0:02:29]} 26... Bd7 {[%clk
0:01:47.6]} 27. Rg1 {[%clk 0:02:14.7]} 27... Qg7 {[%clk 0:01:42.2]} 28. Rg3
{[%clk 0:02:13.8]} 28... Qh6 {[%clk 0:01:32]} 29. e6 {[%clk 0:02:08.9]} 29...
Be8 {[%clk 0:01:25.4]} 30. Ng5 {[%clk 0:02:09.9]} 30... Nxg5 {[%clk 0:01:20]}
31. fxg5 {[%clk 0:02:11]} 31... Qh4 {[%clk 0:01:05.6]} 32. Qf3 {[%clk
0:02:11.8]} 32... Kg7 {[%clk 0:01:03.4]} 33. Rxh3 {[%clk 0:02:09.8]} 33... Qxg5
{[%clk 0:00:46.1]} 34. Rg1 {[%clk 0:02:08.9]} 34... Qd2 {[%clk 0:00:41.4]} 35.
Bxf5 {[%clk 0:01:47.9]} 35... cxb4 {[%clk 0:00:29.8]} 36. axb4 {[%clk
0:01:41.6]} 36... Nxb4 {[%clk 0:00:30.2]} 37. Qh5 {[%clk 0:01:36.9]} 37... Rc8
{[%clk 0:00:11.1]} 38. Rxg6+ {[%clk 0:01:36.1]} 1-0

[Event "*** Titled Tuesday Blitz"]
[Site "Chess.com"]
[Date "2018.12.04"]
[Round "1"]
[White "Ali_rastbod"]
[Black "cool4chess"]
[Result "1-0"]
[WhiteElo "2593"]
[BlackElo "2259"]
[TimeControl "180+2"]
[EndTime "13:07:35 PST"]
[Termination "Ali_rastbod won by resignation"]

1. d4 {[%clk 0:02:59.1]} 1... d5 {[%clk 0:03:00.6]} 2. c4 {[%clk 0:02:58.7]}
2... c6 {[%clk 0:03:01.3]} 3. Nf3 {[%clk 0:02:59.7]} 3... Nf6 {[%clk 0:03:02.6]}
4. e3 {[%clk 0:03:01.1]} 4... Bf5 {[%clk 0:03:03.1]} 5. Qb3 {[%clk 0:03:01.3]}
5... Qb6 {[%clk 0:02:56.5]} 6. cxd5 {[%clk 0:02:58.8]} 6... cxd5 {[%clk
0:02:56.2]} 7. Nc3 {[%clk 0:02:58.1]} 7... e6 {[%clk 0:02:52.3]} 8. Be2 {[%clk
0:02:54.4]} 8... Qxb3 {[%clk 0:02:46.9]} 9. axb3 {[%clk 0:02:55.1]} 9... Bb4
{[%clk 0:02:48.8]} 10. Bd2 {[%clk 0:02:52.5]} 10... Nc6 {[%clk 0:02:47]} 11. O-O
{[%clk 0:02:41.7]} 11... O-O {[%clk 0:02:48.1]} 12. Rfc1 {[%clk 0:02:40.9]}
12... Rfc8 {[%clk 0:02:48.2]} 13. Na4 {[%clk 0:02:31.8]} 13... Ne4 {[%clk
0:02:44.8]} 14. Bc3 {[%clk 0:02:18.1]} 14... Nxc3 {[%clk 0:02:35.2]} 15. bxc3
{[%clk 0:02:18.3]} 15... Be7 {[%clk 0:02:34.4]} 16. b4 {[%clk 0:02:16.6]} 16...
h6 {[%clk 0:02:20.2]} 17. Nd2 {[%clk 0:02:12.5]} 17... Rc7 {[%clk 0:02:09.2]}
18. Nb3 {[%clk 0:02:00]} 18... Rac8 {[%clk 0:02:09.3]} 19. Nac5 {[%clk
0:01:59.2]} 19... b6 {[%clk 0:01:57.8]} 20. Na6 {[%clk 0:01:56.2]} 20... Rb7
{[%clk 0:01:54.2]} 21. b5 {[%clk 0:01:52.2]} 21... Nb8 {[%clk 0:01:54]} 22. Nxb8
{[%clk 0:01:47.1]} 22... Rcxb8 {[%clk 0:01:55.9]} 23. c4 {[%clk 0:01:47]} 23...
dxc4 {[%clk 0:01:30.3]} 24. Rxc4 {[%clk 0:01:48.9]} 24... Be4 {[%clk 0:01:31.6]}
25. Bf3 {[%clk 0:01:35.3]} 25... Bxf3 {[%clk 0:01:24.7]} 26. gxf3 {[%clk
0:01:37.2]} 26... Ra8 {[%clk 0:01:21.7]} 27. Nc1 {[%clk 0:01:31.7]} 27... Rd8
{[%clk 0:01:03.7]} 28. Nd3 {[%clk 0:01:30.6]} 28... Rd5 {[%clk 0:01:02.2]} 29.
Rb1 {[%clk 0:01:23.5]} 29... Bd8 {[%clk 0:00:52.2]} 30. Ne5 {[%clk 0:01:06.4]}
30... Bf6 {[%clk 0:00:20.8]} 31. Nc6 {[%clk 0:01:04.9]} 31... Rd6 {[%clk
0:00:21.1]} 32. Ra4 {[%clk 0:01:05.5]} 32... Rdd7 {[%clk 0:00:21]} 33. f4 {[%clk
0:01:03.4]} 33... Rbc7 {[%clk 0:00:17]} 34. Rba1 {[%clk 0:01:03.1]} 34... Rd5
{[%clk 0:00:16]} 35. Rxa7 {[%clk 0:01:02.6]} 35... Rxa7 {[%clk 0:00:16.2]} 36.
Nxa7 {[%clk 0:01:04.5]} 36... Be7 {[%clk 0:00:17.4]} 37. Nc6 {[%clk 0:01:04.3]}
37... Bf8 {[%clk 0:00:17.6]} 38. Ra8 {[%clk 0:01:03.8]} 38... g6 {[%clk
0:00:17]} 39. Ne7+ {[%clk 0:01:04.8]} 39... Kg7 {[%clk 0:00:18.9]} 40. Nxd5
{[%clk 0:01:06.7]} 40... exd5 {[%clk 0:00:20.8]} 41. Rb8 {[%clk 0:01:08.1]} 1-0

[Event "*** Titled Tuesday Blitz"]
[Site "Chess.com"]
[Date "2018.12.04"]
[Round "1"]
[White "walkingcreep"]
[Black "LuisFSiles"]
[Result "1-0"]
[WhiteElo "2574"]
[BlackElo "2234"]
[TimeControl "180+2"]
[EndTime "13:07:53 PST"]
[Termination "walkingcreep won by resignation"]

1. d4 {[%clk 0:03:01.6]} 1... Nf6 {[%clk 0:02:58]} 2. c4 {[%clk 0:03:02.6]} 2...
c5 {[%clk 0:02:57.6]} 3. d5 {[%clk 0:03:03.3]} 3... e6 {[%clk 0:02:59]} 4. Nc3
{[%clk 0:03:03.7]} 4... exd5 {[%clk 0:03:00.2]} 5. cxd5 {[%clk 0:03:05]} 5... d6
{[%clk 0:03:01.6]} 6. e4 {[%clk 0:03:06.1]} 6... g6 {[%clk 0:03:02.9]} 7. f4
{[%clk 0:03:06.5]} 7... Bg7 {[%clk 0:03:03.2]} 8. Bb5+ {[%clk 0:03:08.1]} 8...
Nfd7 {[%clk 0:03:04.3]} 9. Bd3 {[%clk 0:03:09.2]} 9... O-O {[%clk 0:03:02.6]}
10. Nf3 {[%clk 0:03:10.1]} 10... a6 {[%clk 0:03:01.9]} 11. a4 {[%clk 0:03:10.6]}
11... Nf6 {[%clk 0:02:53.8]} 12. O-O {[%clk 0:03:06]} 12... Bg4 {[%clk
0:02:53.9]} 13. h3 {[%clk 0:03:03.8]} 13... Bxf3 {[%clk 0:02:55.1]} 14. Qxf3
{[%clk 0:03:05.3]} 14... Nbd7 {[%clk 0:02:55]} 15. a5 {[%clk 0:03:00.9]} 15...
Ne8 {[%clk 0:02:46.2]} 16. Bd2 {[%clk 0:02:55.6]} 16... Nc7 {[%clk 0:02:32.7]}
17. Rab1 {[%clk 0:02:49.3]} 17... b5 {[%clk 0:02:26]} 18. axb6 {[%clk
0:02:48.8]} 18... Nxb6 {[%clk 0:02:27.3]} 19. b4 {[%clk 0:02:49.6]} 19... Bd4+
{[%clk 0:02:18.5]} 20. Kh1 {[%clk 0:02:48.1]} 20... cxb4 {[%clk 0:01:57.8]} 21.
Ne2 {[%clk 0:02:42.8]} 21... Bg7 {[%clk 0:01:52.8]} 22. Bxb4 {[%clk 0:02:41.4]}
22... Nb5 {[%clk 0:01:51.2]} 23. Ba5 {[%clk 0:02:39.6]} 23... Qc7 {[%clk
0:01:21.1]} 24. Bxb5 {[%clk 0:01:57.8]} 24... axb5 {[%clk 0:01:21.9]} 25. Rxb5
{[%clk 0:01:58.9]} 25... Qc4 {[%clk 0:01:18]} 26. Rxb6 {[%clk 0:01:54.7]} 26...
Rxa5 {[%clk 0:01:18.3]} 27. Rxd6 {[%clk 0:01:55.1]} 27... Ra2 {[%clk 0:01:14.4]}
28. Ng3 {[%clk 0:01:53.1]} 28... Rb8 {[%clk 0:01:09.6]} 29. Rc6 {[%clk
0:01:47.2]} 29... Qa4 {[%clk 0:00:56.1]} 30. e5 {[%clk 0:01:14.3]} 30... Rb3
{[%clk 0:00:48.2]} 31. Rc3 {[%clk 0:01:14.4]} 31... Rbb2 {[%clk 0:00:38.9]} 32.
Rg1 {[%clk 0:00:53.8]} 32... Qd4 {[%clk 0:00:32.5]} 33. Rc8+ {[%clk 0:00:50.5]}
33... Bf8 {[%clk 0:00:33]} 34. d6 {[%clk 0:00:44.5]} 34... Rf2 {[%clk
0:00:31.1]} 35. Qe4 {[%clk 0:00:43.7]} 35... Qd2 {[%clk 0:00:23.8]} 36. e6
{[%clk 0:00:38.5]} 36... Qxd6 {[%clk 0:00:22.8]} 37. e7 {[%clk 0:00:39.5]} 1-0

[Event "*** Titled Tuesday Blitz"]
[Site "Chess.com"]
[Date "2018.12.04"]
[Round "1"]
[White "Pilopa"]
[Black "Hrant_ChessMood"]
[Result "0-1"]
[WhiteElo "2448"]
[BlackElo "2941"]
[TimeControl "180+2"]
[EndTime "13:07:57 PST"]
[Termination "Hrant_ChessMood won on time"]

1. d4 {[%clk 0:03:01.8]} 1... Nf6 {[%clk 0:02:58.6]} 2. c4 {[%clk 0:03:02.7]}
2... g6 {[%clk 0:02:56.2]} 3. Nc3 {[%clk 0:03:03.1]} 3... Bg7 {[%clk 0:02:55.2]}
4. e4 {[%clk 0:03:04]} 4... d6 {[%clk 0:02:55.7]} 5. Nf3 {[%clk 0:03:05]} 5...
O-O {[%clk 0:02:56.5]} 6. Be2 {[%clk 0:03:06.2]} 6... c5 {[%clk 0:02:56.6]} 7.
O-O {[%clk 0:03:06.4]} 7... Re8 {[%clk 0:02:56.4]} 8. Bg5 {[%clk 0:02:54]} 8...
h6 {[%clk 0:02:48.7]} 9. Be3 {[%clk 0:02:52]} 9... Ng4 {[%clk 0:02:46.7]} 10.
Bc1 {[%clk 0:02:52.2]} 10... Nf6 {[%clk 0:02:47.4]} 11. Be3 {[%clk 0:02:52.1]}
11... Nbd7 {[%clk 0:02:48.1]} 12. d5 {[%clk 0:02:10.7]} 12... e5 {[%clk
0:02:37.1]} 13. dxe6 {[%clk 0:02:10.7]} 13... Rxe6 {[%clk 0:02:37.3]} 14. Nd2
{[%clk 0:02:07.6]} 14... Re8 {[%clk 0:02:32.6]} 15. f3 {[%clk 0:01:56.7]} 15...
Ne5 {[%clk 0:02:31.7]} 16. h3 {[%clk 0:01:43]} 16... g5 {[%clk 0:02:28.8]} 17.
Re1 {[%clk 0:01:34.5]} 17... Nh5 {[%clk 0:02:27.4]} 18. Nf1 {[%clk 0:01:34.7]}
18... Nf4 {[%clk 0:02:26.7]} 19. Qd2 {[%clk 0:01:30.1]} 19... Neg6 {[%clk
0:02:24.7]} 20. Nd5 {[%clk 0:01:29.7]} 20... Be5 {[%clk 0:02:19.2]} 21. b4
{[%clk 0:01:13]} 21... b6 {[%clk 0:02:05.7]} 22. Rad1 {[%clk 0:01:13.1]} 22...
Be6 {[%clk 0:02:04.3]} 23. Nxf4 {[%clk 0:00:50.6]} 23... gxf4 {[%clk 0:01:55.2]}
24. Bf2 {[%clk 0:00:50.9]} 24... Kh7 {[%clk 0:01:54]} 25. Nh2 {[%clk 0:00:38.6]}
25... h5 {[%clk 0:01:54.6]} 26. bxc5 {[%clk 0:00:30.3]} 26... bxc5 {[%clk
0:01:55.3]} 27. Bf1 {[%clk 0:00:24.6]} 27... Rg8 {[%clk 0:01:55]} 28. Kh1 {[%clk
0:00:25.5]} 28... Qg5 {[%clk 0:01:53.5]} 29. Qe2 {[%clk 0:00:15.4]} 29... Nh4
{[%clk 0:01:54]} 30. Bxh4 {[%clk 0:00:16.2]} 30... Qxh4 {[%clk 0:01:55.9]} 31.
Rb1 {[%clk 0:00:16.7]} 31... Rg7 {[%clk 0:01:52.8]} 32. Red1 {[%clk 0:00:12.5]}
32... Rag8 {[%clk 0:01:53.9]} 33. Qe1 {[%clk 0:00:13.5]} 33... Qxh3 {[%clk
0:01:51.1]} 34. Qf2 {[%clk 0:00:12.6]} 34... Qg3 {[%clk 0:01:41.9]} 35. Rd2
{[%clk 0:00:13.5]} 35... Bd4 {[%clk 0:01:40.4]} 36. Qe1 {[%clk 0:00:09.6]} 36...
Qh3 {[%clk 0:01:27.1]} 37. Qe2 {[%clk 0:00:04.3]} 37... Rg3 {[%clk 0:01:22.7]}
38. Qd1 {[%clk 0:00:03]} 38... Bxc4 {[%clk 0:01:16.3]} 39. Bxc4 {[%clk
0:00:02.5]} 39... Rxg2 {[%clk 0:01:16.1]} 0-1

[Event "*** Titled Tuesday Blitz"]
[Site "Chess.com"]
[Date "2018.12.04"]
[Round "1"]
[White "Alopekos"]
[Black "GMWSO"]
[Result "1-0"]
[WhiteElo "2480"]
[BlackElo "2980"]
[TimeControl "180+2"]
[EndTime "13:07:58 PST"]
[Termination "Alopekos won by resignation"]

1. e4 {[%clk 0:03:01.6]} 1... c5 {[%clk 0:02:55.1]} 2. Nf3 {[%clk 0:03:02.4]}
2... d6 {[%clk 0:02:55.9]} 3. d4 {[%clk 0:03:03.2]} 3... cxd4 {[%clk 0:02:57.8]}
4. Nxd4 {[%clk 0:03:05]} 4... Nf6 {[%clk 0:02:59.4]} 5. Nc3 {[%clk 0:03:06.6]}
5... a6 {[%clk 0:03:00.8]} 6. Be3 {[%clk 0:03:07.7]} 6... e5 {[%clk 0:02:59.4]}
7. Nb3 {[%clk 0:03:08.4]} 7... Be6 {[%clk 0:02:59.7]} 8. f4 {[%clk 0:03:09.4]}
8... exf4 {[%clk 0:02:57.5]} 9. Bxf4 {[%clk 0:03:11.3]} 9... Nc6 {[%clk
0:02:59.3]} 10. Qd2 {[%clk 0:03:12.3]} 10... d5 {[%clk 0:02:59]} 11. O-O-O
{[%clk 0:03:13.7]} 11... Bb4 {[%clk 0:02:33.5]} 12. Qd3 {[%clk 0:03:02.9]} 12...
dxe4 {[%clk 0:02:28.5]} 13. Nxe4 {[%clk 0:02:33]} 13... Nd5 {[%clk 0:02:18.4]}
14. Qg3 {[%clk 0:02:25.4]} 14... O-O {[%clk 0:02:05.5]} 15. Bh6 {[%clk
0:01:32.3]} 15... g6 {[%clk 0:02:05]} 16. c4 {[%clk 0:01:30.4]} 16... Qc8 {[%clk
0:01:42.8]} 17. Rxd5 {[%clk 0:00:40.8]} 17... Bxd5 {[%clk 0:01:37.4]} 18. Nf6+
{[%clk 0:00:41.8]} 18... Kh8 {[%clk 0:01:39]} 19. Qh4 {[%clk 0:00:11.3]} 19...
Rd8 {[%clk 0:01:02]} 20. Nxd5 {[%clk 0:00:08.8]} 20... Qe6 {[%clk 0:00:51.9]}
21. Bg5 {[%clk 0:00:07.2]} 21... Rd7 {[%clk 0:00:42.7]} 22. Bd3 {[%clk
0:00:04.1]} 22... Ne5 {[%clk 0:00:36.2]} 23. Bf6+ {[%clk 0:00:04.3]} 23... Kg8
{[%clk 0:00:37.8]} 24. Bxe5 {[%clk 0:00:05.3]} 24... Qxe5 {[%clk 0:00:35.6]} 25.
Nf6+ {[%clk 0:00:06.4]} 25... Kg7 {[%clk 0:00:33.6]} 26. Nxd7 {[%clk 0:00:07.6]}
26... Qe3+ {[%clk 0:00:32.4]} 27. Kc2 {[%clk 0:00:08.6]} 27... Be7 {[%clk
0:00:33.8]} 28. Qe1 {[%clk 0:00:04.5]} 28... Qg5 {[%clk 0:00:32.6]} 29. Qe5+
{[%clk 0:00:03.5]} 29... Qxe5 {[%clk 0:00:33.6]} 30. Nxe5 {[%clk 0:00:05.4]}
30... Rd8 {[%clk 0:00:35.4]} 31. Rf1 {[%clk 0:00:05.9]} 31... Bf6 {[%clk
0:00:35.7]} 32. Ng4 {[%clk 0:00:06.8]} 32... Be7 {[%clk 0:00:36.4]} 33. Ne3
{[%clk 0:00:07]} 33... Bd6 {[%clk 0:00:36.2]} 34. g3 {[%clk 0:00:07.6]} 1-0

[Event "*** Titled Tuesday Blitz"]
[Site "Chess.com"]
[Date "2018.12.04"]
[Round "1"]
[White "tteshan"]
[Black "AliKa2810"]
[Result "1/2-1/2"]
[WhiteElo "2114"]
[BlackElo "2497"]
[TimeControl "180+2"]
[EndTime "13:08:02 PST"]
[Termination "Game drawn by agreement"]

1. d4 {[%clk 0:03:01.6]} 1... Nf6 {[%clk 0:03:00.6]} 2. c4 {[%clk 0:03:02.2]}
2... g6 {[%clk 0:03:00.1]} 3. Nc3 {[%clk 0:03:03.1]} 3... Bg7 {[%clk 0:02:58.3]}
4. e4 {[%clk 0:03:04.1]} 4... d6 {[%clk 0:02:57.8]} 5. Be2 {[%clk 0:03:04.7]}
5... O-O {[%clk 0:02:58.5]} 6. Bg5 {[%clk 0:03:05.8]} 6... Na6 {[%clk
0:02:56.3]} 7. Qd2 {[%clk 0:03:05.1]} 7... e5 {[%clk 0:02:56.9]} 8. dxe5 {[%clk
0:03:00.6]} 8... dxe5 {[%clk 0:02:57.3]} 9. Qxd8 {[%clk 0:03:02.1]} 9... Rxd8
{[%clk 0:02:57.8]} 10. Nd5 {[%clk 0:03:03.6]} 10... Rd6 {[%clk 0:02:55.5]} 11.
Bxf6 {[%clk 0:03:01.4]} 11... Bxf6 {[%clk 0:02:55.7]} 12. Nf3 {[%clk 0:02:59.2]}
12... Bg7 {[%clk 0:02:51.2]} 13. O-O-O {[%clk 0:02:53.1]} 13... Be6 {[%clk
0:02:38.6]} 14. Kb1 {[%clk 0:02:37]} 14... Rad8 {[%clk 0:02:34.2]} 15. Ng5
{[%clk 0:02:32.5]} 15... Bd7 {[%clk 0:02:16.2]} 16. h4 {[%clk 0:02:25.5]} 16...
h6 {[%clk 0:02:15.9]} 17. Nf3 {[%clk 0:02:23.4]} 17... Kf8 {[%clk 0:02:17.4]}
18. Ne3 {[%clk 0:02:13.5]} 18... Be6 {[%clk 0:02:16.2]} 19. Rxd6 {[%clk
0:02:10.2]} 19... cxd6 {[%clk 0:02:05.6]} 20. Rd1 {[%clk 0:02:09]} 20... Nc5
{[%clk 0:02:06.4]} 21. Nd2 {[%clk 0:02:04]} 21... f5 {[%clk 0:01:52.6]} 22. exf5
{[%clk 0:01:57.1]} 22... gxf5 {[%clk 0:01:51.9]} 23. b4 {[%clk 0:01:57]} 23...
Na4 {[%clk 0:01:50.4]} 24. Kc2 {[%clk 0:01:50.2]} 24... Rc8 {[%clk 0:01:45]} 25.
Kb3 {[%clk 0:01:45.6]} 25... b5 {[%clk 0:01:45.1]} 26. g4 {[%clk 0:01:15.2]}
26... Nb6 {[%clk 0:00:35.2]} 27. gxf5 {[%clk 0:01:12.7]} 27... Bf7 {[%clk
0:00:34]} 28. Ne4 {[%clk 0:01:01.1]} 28... Nxc4 {[%clk 0:00:32.1]} 29. Nxc4
{[%clk 0:00:54]} 29... bxc4+ {[%clk 0:00:33.2]} 30. Kc2 {[%clk 0:00:45.9]} 30...
d5 {[%clk 0:00:27.2]} 31. Nd6 {[%clk 0:00:39.3]} 31... Rd8 {[%clk 0:00:24.9]}
32. Nxf7 {[%clk 0:00:40.2]} 32... Kxf7 {[%clk 0:00:25.7]} 33. Rxd5 {[%clk
0:00:41.2]} 33... Rxd5 {[%clk 0:00:12.6]} 34. Bxc4 {[%clk 0:00:42.2]} 34... Kf6
{[%clk 0:00:14.2]} 35. Bxd5 {[%clk 0:00:43]} 35... Kxf5 {[%clk 0:00:15.8]} 36.
a4 {[%clk 0:00:40.9]} 36... h5 {[%clk 0:00:15.7]} 37. f3 {[%clk 0:00:39.5]}
37... Bf6 {[%clk 0:00:15.4]} 38. Bf7 {[%clk 0:00:40.3]} 38... Bxh4 {[%clk
0:00:15.8]} 39. Bxh5 {[%clk 0:00:41.6]} 39... e4 {[%clk 0:00:16.8]} 40. fxe4+
{[%clk 0:00:42.3]} 40... Kxe4 {[%clk 0:00:18.4]} 41. b5 {[%clk 0:00:42.6]}
1/2-1/2

[Event "*** Titled Tuesday Blitz"]
[Site "Chess.com"]
[Date "2018.12.04"]
[Round "1"]
[White "dyziotomi99"]
[Black "abubakrtagelsir"]
[Result "1-0"]
[WhiteElo "2607"]
[BlackElo "2278"]
[TimeControl "180+2"]
[EndTime "13:08:03 PST"]
[Termination "dyziotomi99 won by resignation"]

1. e4 {[%clk 0:03:01.1]} 1... d6 {[%clk 0:03:00.8]} 2. d4 {[%clk 0:03:01.8]}
2... Nf6 {[%clk 0:02:59.4]} 3. Nc3 {[%clk 0:03:00.5]} 3... g6 {[%clk 0:02:59.2]}
4. f4 {[%clk 0:03:01.4]} 4... Bg7 {[%clk 0:02:59.6]} 5. Nf3 {[%clk 0:03:02.2]}
5... c5 {[%clk 0:02:57.9]} 6. dxc5 {[%clk 0:03:02.2]} 6... Qa5 {[%clk
0:02:56.2]} 7. Bd3 {[%clk 0:03:03.1]} 7... Qxc5 {[%clk 0:02:56.2]} 8. Qe2 {[%clk
0:03:03.8]} 8... Bg4 {[%clk 0:02:53.7]} 9. Be3 {[%clk 0:03:03.5]} 9... Qa5
{[%clk 0:02:54.3]} 10. O-O {[%clk 0:03:03.8]} 10... Nc6 {[%clk 0:02:52.7]} 11.
h3 {[%clk 0:03:04.2]} 11... Bxf3 {[%clk 0:02:52.9]} 12. Qxf3 {[%clk 0:03:05.7]}
12... O-O {[%clk 0:02:53.6]} 13. a3 {[%clk 0:03:06]} 13... Nd7 {[%clk
0:02:53.2]} 14. Bd2 {[%clk 0:02:59.4]} 14... Qb6+ {[%clk 0:02:45.6]} 15. Kh1
{[%clk 0:02:57.4]} 15... Nc5 {[%clk 0:02:43.9]} 16. Nd5 {[%clk 0:02:43.1]} 16...
Qd8 {[%clk 0:02:37.9]} 17. Bc3 {[%clk 0:02:43.3]} 17... e6 {[%clk 0:02:34.3]}
18. Bxg7 {[%clk 0:02:43.3]} 18... Kxg7 {[%clk 0:02:34]} 19. Nc3 {[%clk 0:02:44]}
19... Rc8 {[%clk 0:02:21.5]} 20. Rad1 {[%clk 0:02:42.7]} 20... Qb6 {[%clk
0:02:03.4]} 21. b3 {[%clk 0:02:38.8]} 21... Qa5 {[%clk 0:01:50.7]} 22. Nb1
{[%clk 0:02:37.4]} 22... Nxd3 {[%clk 0:01:36.1]} 23. Qxd3 {[%clk 0:02:37.7]}
23... Rfd8 {[%clk 0:01:26.8]} 24. c4 {[%clk 0:02:34.4]} 24... a6 {[%clk
0:01:13.6]} 25. b4 {[%clk 0:02:28.6]} 25... Qh5 {[%clk 0:01:13.9]} 26. Nc3
{[%clk 0:02:24.2]} 26... e5 {[%clk 0:01:08.1]} 27. Nd5 {[%clk 0:02:23.1]} 27...
Nd4 {[%clk 0:01:05.7]} 28. fxe5 {[%clk 0:02:20.7]} 28... dxe5 {[%clk 0:01:04.2]}
29. c5 {[%clk 0:02:18.7]} 29... Rc6 {[%clk 0:00:58.6]} 30. Qg3 {[%clk
0:02:13.4]} 30... Rf8 {[%clk 0:00:37.4]} 31. Rd2 {[%clk 0:02:06.2]} 31... a5
{[%clk 0:00:34.4]} 32. Rdf2 {[%clk 0:02:04.7]} 32... axb4 {[%clk 0:00:33.5]} 33.
axb4 {[%clk 0:02:05.7]} 33... Ra6 {[%clk 0:00:19.6]} 34. Kh2 {[%clk 0:02:01]}
34... Re6 {[%clk 0:00:18.1]} 35. Nf6 {[%clk 0:01:49.5]} 35... Rxf6 {[%clk
0:00:11.1]} 36. Rxf6 {[%clk 0:01:49.7]} 36... Ne2 {[%clk 0:00:10.7]} 37. Qg4
{[%clk 0:01:48.6]} 37... Qxg4 {[%clk 0:00:11.2]} 38. hxg4 {[%clk 0:01:50.1]}
38... Nf4 {[%clk 0:00:12.3]} 39. Rb6 {[%clk 0:01:50.8]} 39... Rd8 {[%clk
0:00:09.3]} 40. Rf2 {[%clk 0:01:48.9]} 40... Rd4 {[%clk 0:00:09.2]} 41. Rxb7
{[%clk 0:01:49.3]} 41... Rxe4 {[%clk 0:00:10.2]} 42. c6 {[%clk 0:01:49.9]} 42...
Rc4 {[%clk 0:00:10.6]} 43. b5 {[%clk 0:01:49.5]} 43... g5 {[%clk 0:00:11.5]} 44.
c7 {[%clk 0:01:46.6]} 44... Ne6 {[%clk 0:00:11.2]} 45. b6 {[%clk 0:01:45.7]}
45... e4 {[%clk 0:00:12.5]} 46. Rxf7+ {[%clk 0:01:46.2]} 46... Kg6 {[%clk
0:00:12.5]} 47. Re7 {[%clk 0:01:41.7]} 47... Kf6 {[%clk 0:00:10.4]} 48. Rxe6+
{[%clk 0:01:42.8]} 48... Kxe6 {[%clk 0:00:11.6]} 49. Rb8 {[%clk 0:01:44.7]}
49... e3 {[%clk 0:00:13]} 50. c8=Q+ {[%clk 0:01:45.1]} 50... Rxc8 {[%clk
0:00:13.3]} 51. Rxc8 {[%clk 0:01:47]} 1-0